Cogmind - Beta 13 X1 @@@ ROGUE MODE // 2023.10.17 @ 13:45:01 Player: f3-rnm Result: Destroyed by 8R-AWN with 8R-AWN's Boregun Performance ------------- Evolutions (0) 0 Regions Visited (3) 600 Robots Destroyed (24) 120 Value Destroyed (449) 449 Prototype IDs (23) 460 Alien Tech Used (0) 0 Bonus (300) 300 TOTAL SCORE: 1929 Bonus ------- Aligned with FarCom 300 Cogmind --------- Core Integrity 0/250 Matter 13/300 Energy 160/160 System Corruption 0% Temperature Warm (177) Movement Treading (160) Location -10/Exiles Parts ------- > --- POWER (1) -------- Light Nuclear Core > --- PROPULSION (2) --- Light Treads Light Treads > --- UTILITY (2) ------ Tractor Beam > --- WEAPON (2) ------- Light Assault Rifle Light Cannon > --- INVENTORY (5) ---- Large Storage Unit High-capacity Storage Unit Improved Terrain Scanner Grenade Launcher Field Lobotomy Kit (2) Peak State ------------ > --- POWER ------------ Ion Engine > --- PROPULSION ------- Light Treads Light Treads > --- UTILITY ---------- High-capacity Storage Unit > --- WEAPON ----------- Grenade Launcher Field Lobotomy Kit > --- INVENTORY -------- Light Nuclear Core Light Treads Light Treads Light Treads Large Storage Unit Large Storage Unit Superbattery Large Matter Pod Improved Terrain Scanner Light Armor Plating Light Armor Plating Tractor Beam Assault Rifle Assault Rifle Light Assault Rifle Light Cannon Hammer [Rating: 18] Favorites ----------- Power Ion Engine Engine Ion Engine Power Core Light Nuclear Core Propulsion Light Treads Treads Light Treads Utility Signal Interpreter Device Tractor Beam Storage High-capacity Storage Unit Processor Signal Interpreter Protection Light Armor Plating Weapon Assault Rifle Ballistic Gun Assault Rifle Ballistic Cannon Light Cannon Launcher Grenade Launcher Special Weapon Field Lobotomy Kit Build | -11 -10 -10 -10 ------- Run | Jun Mat Min Exi Slots Evolved . | . . . . Power . | . . . . Propulsion . | . . . . Utility . | . . . . Weapon . | . . . . Parts Attached 26 | 6 4 1 15 Power 3 | 1 . . 2 Engine 2 | 1 . . 1 Core 1 | . . . 1 Reactor . | . . . . Propulsion 5 | 2 . . 3 Treads 5 | 2 . . 3 Leg . | . . . . Wheel . | . . . . Hover . | . . . . Flight . | . . . . Utility 7 | 1 2 1 3 Device 1 | . . . 1 Storage 3 | 1 1 1 . Processor 1 | . 1 . . Hackware . | . . . . Protection 2 | . . . 2 Artifact . | . . . . Weapon 11 | 2 2 . 7 Energy Gun . | . . . . Energy Cannon . | . . . . Ballistic Gun 6 | 2 1 . 3 Ballistic Cannon 2 | . . . 2 Launcher 2 | . 1 . 1 Special Weapon 1 | . . . 1 Impact Weapon . | . . . . Slashing Weapon . | . . . . Piercing Weapon . | . . . . Special Melee Weapon . | . . . . Unidentified Prototypes . | . . . . Parts Lost 8 | . . . 8 Power 1 | . . . 1 Propulsion 3 | . . . 3 Utility 2 | . . . 2 Weapon 2 | . . . 2 Highest Loss Streak 4 | . . . 4 To Critical Strikes 3 | . . . 3 Average Slot Usage (%) 95 | . 87 100 97 Engine 13 | . 14 14 13 Treads 27 | . 28 28 27 Storage 14 | . 14 14 14 Processor 9 | . 2 14 10 Ballistic Gun 26 | . 27 28 25 Naked Turns . | . . . . Heaviest Build 56 | 14 30 48 56 Greatest Support 40 | 40 40 40 40 Greatest Overweight (x) 1 | . . 1 1 Average Overweight (x) . | . . . 1 Largest Inventory Capacity 20 | 8 15 20 20 Average Capacity 17 | 6 14 18 19 Most Carried 20 | 5 15 18 20 Average Carried 16 | 1 11 16 18 Final Capacity 20 | 8 15 20 5 Final Carried 18 | 1 15 18 5 Class Distribution -------------------- 97% | Mutant Dominant Class ---------------- Mutant | -10/Materials Mutant | -10/Mines Mutant | -10/Exiles Resources | -11 -10 -10 -10 ----------- Run | Jun Mat Min Exi Matter Collected 945 | 238 500 55 152 Remotely 2 | . . . 2 Salvage Created 660 | . 524 136 . Parts 42 | . 37 5 . Haulers Intercepted 2 | . 2 . . Recyclers Shooed . | . . . . Parts Field Recycled . | . . . . Retrieved Matter . | . . . . Parts Self-Destructed . | . . . . Prevented . | . . . . Kills | -11 -10 -10 -10 ------- Run | Jun Mat Min Exi Combat Hostiles Destroyed 13 | . 11 2 . Guns 9 | . 7 2 . AOE 4 | . 4 . . Classes Destroyed 9 | . 8 1 . Builder 2 | . 2 . . Tunneler 3 | . 2 1 . Hauler 2 | . 2 . . Recycler 2 | . 2 . . Mechanic 1 | . 1 . . Watcher 1 | . 1 . . Swarmer 6 | . 6 . . Grunt 5 | . 5 . . Sentry 2 | . . 2 . Best Kill Streak 7 | . 7 2 . Combat Bots Only 3 | . 3 2 . Max Kills in Single Turn 3 | . 3 1 . Gunslinging 1 | . 1 . . Exploded 2 | . 2 . . Melee . | . . . . Uniques/NPCs Destroyed . | . . . . Combat | -11 -10 -10 -10 -------- Run | Jun Mat Min Exi Damage Taken 1579 | . 362 120 1097 Core 269 | . 71 30 168 Absorbed by Shields . | . . . . Core Remaining (%) 100 | 100 . . . Volleys Fired 117 | . 53 7 57 Largest 2 | . 2 2 2 Hottest 55 | . 50 40 55 Shots Fired 222 | . 100 14 108 Gun 160 | . 93 14 53 Cannon 52 | . . . 52 Launcher 7 | . 7 . . Special 3 | . . . 3 Kinetic 212 | . 93 14 105 Thermal . | . . . . Explosive 7 | . 7 . . Electromagnetic . | . . . . Robot Hit Streak 10 | . 10 10 9 Robot Miss Streak 4 | . 4 1 4 Penetration Max . | . . . . Secondary Targets 2 | . 1 1 . Max Gunslinging Chain 1 | . 1 1 . Shots Hit Robots 140 | . 63 9 68 Core Hits 47 | . 31 5 11 Critical Kills . | . . . . Critical Parts Destroyed 2 | . 1 1 . Critical Strikes 3 | . 1 1 1 Destroy 2 | . 1 1 . Blast 1 | . . . 1 Melee Attacks . | . . . . Impact . | . . . . Slashing . | . . . . Piercing . | . . . . Sneak Attacks . | . . . . Combat Hostiles . | . . . . Follow-up Attacks . | . . . . Damage Inflicted 2504 | . 1388 105 1011 Guns 1090 | . 697 105 288 Cannons 723 | . . . 723 Explosions 691 | . 691 . . Melee . | . . . . Ramming . | . . . . Kinetic 1813 | . 697 105 1011 Thermal 284 | . 284 . . Explosive 336 | . 336 . . Electromagnetic 71 | . 71 . . Impact . | . . . . Slashing . | . . . . Piercing . | . . . . Highest Corruption . | . . . . Average Corruption . | . . . . Corruption Purged . | . . . . Corruption Blocked . | . . . . Overload Shots . | . . . . Overflow Damage 124 | . 124 . . Projectiles . | . . . . Explosions 124 | . 124 . . Melee . | . . . . Knockbacks 9 | . . . 9 Impact . | . . . . Kinetic 9 | . . . 9 Secondary . | . . . . Self-Inflicted Damage . | . . . . Shots . | . . . . Rammed . | . . . . Targets Rammed . | . . . . Kicked . | . . . . Crushed . | . . . . Highest Temperature 180 | . 12 43 180 Average Temperature 36 | . 4 26 41 Received Heat Transfer 251 | . 150 81 20 Siege Activations . | . . . . Robots Corrupted . | . . . . Combat Hostiles . | . . . . Parts Fried . | . . . . Impact Corruptions . | . . . . Robots Melted . | . . . . Combat Hostiles . | . . . . Parts Melted . | . . . . Heat Transferred 150 | . 150 . . Parts Sabotaged . | . . . . Parts Stolen . | . . . . Parts Stripped . | . . . . Power Chain Reactions 2 | . 2 . . Missiles Intercepted . | . . . . Alert | -11 -10 -10 -10 ------- Run | Jun Mat Min Exi Peak Influence 360 | . 360 125 . Initial 120 | . . 120 . Average 93 | . 170 42 . Maximum Alert Level 1 | . 1 . . Low Security (%) 79 | 100 50 100 . Level 1 20 | . 49 . . Level 2 . | . . . . Level 3 . | . . . . Level 4 . | . . . . Level 5 . | . . . . High Security . | . . . . Max Security . | . . . . Squads Dispatched 2 | . 2 . . Investigation 1 | . 1 . . Extermination . | . . . . Reinforcement 1 | . 1 . . Assault . | . . . . Garrison . | . . . . Intercept . | . . . . Searches Triggered . | . . . . Construction Impeded . | . . . . Haulers Reinforced . | . . . . Active Scanning Responses . | . . . . Cargo Convoy Interrupts . | . . . . Stealth | -11 -10 -10 -10 --------- Run | Jun Mat Min Exi Distress Signals . | . . . . Communications Jammed . | . . . . Distress Signals . | . . . . Times Spotted 36 | . 25 2 9 Peak Tracking Total 10 | . 4 4 10 Tactical Retreats 3 | . 1 1 1 Traps | -11 -10 -10 -10 ------- Run | Jun Mat Min Exi Traps Triggered 1 | . 1 . . Indirectly . | . . . . Trap Hack Attempts . | . . . . Triggered . | . . . . Disarmed . | . . . . Reprogrammed . | . . . . Reused . | . . . . Traps Extracted . | . . . . Installed . | . . . . Triggered . | . . . . Machines | -11 -10 -10 -10 ---------- Run | Jun Mat Min Exi Machines Disabled 7 | . 4 . 3 Max in Single Turn 2 | . 2 . 1 Machines Repaired . | . . . . Machines Sabotaged . | . . . . Overloaded Fab Kills . | . . . . Hacking | -11 -10 -10 -10 --------- Run | Jun Mat Min Exi Machines Accessed 4 | . 2 . 2 Terminals 2 | . 2 . . Fabricators . | . . . . Repair Stations . | . . . . Recycling Units . | . . . . Scanalyzers . | . . . . Garrison Access . | . . . . Total Hacks 6 | . 4 . 2 Successful 5 | . 3 . 2 Failed 1 | . 1 . . Catastrophic . | . . . . Database Lockouts . | . . . . Manual 5 | . 4 . 1 Terminals 4 | . 4 . . Fabricators . | . . . . Repair Stations . | . . . . Recycling Units . | . . . . Scanalyzers . | . . . . Garrison Access . | . . . . Terminal Hacks 5 | . 3 . 2 Record 1 | . . . 1 Robot Analysis 3 | . 3 . . Derelict Proto ID Bank 1 | . . . 1 Fabricator Hacks . | . . . . Repair Station Hacks . | . . . . Recycling Unit Hacks . | . . . . Scanalyzer . | . . . . Garrison Access Hacks . | . . . . Unauthorized Hacks . | . . . . Terminals . | . . . . Fabricators . | . . . . Repair Stations . | . . . . Recycling Units . | . . . . Scanalyzers . | . . . . Garrison Access . | . . . . Data Cores Recovered . | . . . . Used . | . . . . Hacking Detections . | . . . . Full Trace Events . | . . . . Feedback Events . | . . . . Feedback Blocked . | . . . . Robot Schematics Acquired . | . . . . Robots Built . | . . . . Authchips . | . . . . Time . | . . . . Total Robot Build Rating . | . . . . Part Schematics Acquired . | . . . . Parts Built . | . . . . Authchips . | . . . . Time . | . . . . Total Part Build Rating . | . . . . Parts Repaired . | . . . . Time . | . . . . Parts Recycled . | . . . . Recycled Matter . | . . . . Retrieved Matter . | . . . . Retrieved Components . | . . . . Parts Scanalyzed . | . . . . Part Schematics Acquired . | . . . . Parts Damaged . | . . . . Bothacking | -11 -10 -10 -10 ------------ Run | Jun Mat Min Exi Used RIF Installer . | . . . . Robots Hacked . | . . . . Non-combat . | . . . . Combat . | . . . . Robot Hacks Applied . | . . . . Relay Couplers Released . | . . . . Fabnet Peak Effective % . | . . . . Robots Rewired . | . . . . Allies Hacked . | . . . . Hacks Repelled . | . . . . Allies | -11 -10 -10 -10 -------- Run | Jun Mat Min Exi Total Allies 5 | . . 3 2 Largest Group 5 | . . 3 5 Highest-Rated Group 56 | . . 40 56 Highest-Rated Ally 16 | . . 16 16 Total Orders 2 | . . . 2 STAY 2 | . . . 2 Ally Attacks 29 | . . . 29 Total Damage 121 | . . . 121 Kills 2 | . . . 2 Allies Corrupted . | . . . . Allies Melted . | . . . . Field Lobotomies 2 | . . . 2 Intel | -11 -10 -10 -10 ------- Run | Jun Mat Min Exi Robot Analysis Total 3 | . 3 . . Derelict Logs Recovered 2 | . . 2 . Drone Launches . | . . . . Drone Recoveries . | . . . . Exploration | -11 -10 -10 -10 ------------- Run | Jun Mat Min Exi Turns Passed 4748 | 93 1135 1520 2000 Spaces Moved 1964 | 54 577 671 662 Core 7 | 7 . . . Treads 1957 | 47 577 671 662 Legs . | . . . . Wheels . | . . . . Hover . | . . . . Flight . | . . . . Fastest Speed 50 | 50 160 160 240 Average Speed 202 | 145 160 206 240 Slowest Speed 240 | 160 160 240 240 Overloaded Moves . | . . . . Propulsion Burnouts . | . . . . Robots Hopped . | . . . . Cave-ins Triggered . | . . . . Exploration Rate (%) 68 | 6 85 97 87 Regions Visited 3 Branch Regions 2 Pre-discovered Areas 2 | . . 1 1 Known Exits Taken 2 | . 1 1 . Unknown Exits Taken 1 | 1 . . . Scrap Searched 1 | . . 1 . Spaces Dug . | . . . . Terrain Destroyed 49 | . 49 . . Melee . | . . . . Projectile . | . . . . AOE 49 | . 49 . . Terrain Rammed . | . . . . Walls Destroyed . | . . . . Machines Disabled . | . . . . Actions | -11 -10 -10 -10 --------- Run | Jun Mat Min Exi Total 2526 | 69 693 795 969 Wait 371 | 1 37 111 222 Move 1961 | 53 576 670 662 Hop . | . . . . Pick Up 36 | 8 19 4 5 Fast Attach . | . . . . Attach 16 | 6 1 . 9 Detach . | . . . . Swap 10 | . 3 1 6 Drop 15 | 1 4 2 8 Fire 117 | . 53 7 57 Melee . | . . . . Ram . | . . . . Kick . | . . . . Crush . | . . . . Escape Stasis . | . . . . Rewire . | . . . . Trap . | . . . . Miscellaneous . | . . . . Route ------- -11/Junkyard -10/Materials (discovered 5 exits: *Mat x2 / *Min x2 / [*Sub]) -10/Mines (discovered 4 exits: *Mat x2 / *Exi / [*Sub]) -10/Exiles (discovered 2 exits: [*Min x2]) History --------- Turn | Location | Event 2 | -11/Junkyard | Discovered new exit (range 16) 94 | -11/Junkyard | Entered Materials 182 | -10/Materials | Discovered new exit (range 7) 285 | -10/Materials | Discovered new exit (range 8) 314 | -10/Materials | Build established: Mutant 629 | -10/Materials | Discovered new exit (range 8) 708 | -10/Materials | Discovered new exit (range 10) 981 | -10/Materials | Discovered new exit (range 7) 1227 | -10/Materials | Identified exit to Mines 1229 | -10/Materials | Entered Mines 1250 | -10/Mines | Learned location of Storage (-9) 1264 | -10/Mines | Assembled infested the area 1624 | -10/Mines | Found a damaged Exp. Sensor Array with a note attached 1628 | -10/Mines | Found Prototype Device 1744 | -10/Mines | Discovered new exit (range 8) 1814 | -10/Mines | Learned Materials trap positions 1831 | -10/Mines | Learned Materials terminal intel 1933 | -10/Mines | Discovered new exit (range 10) 2012 | -10/Mines | Assisted by bots powering up and referring to "LRC-V3" 2144 | -10/Mines | Discovered new exit (range 12) 2677 | -10/Mines | Identified exit to Materials 2740 | -10/Mines | Discovered new exit (range 5) 2747 | -10/Mines | Identified exit to Exiles 2749 | -10/Mines | Entered Exiles 2749 | -10/Exiles | Accompanied by 3 allies 2816 | -10/Exiles | Met 8R-AWN 2881 | -10/Exiles | Discovered new exit (range 14) 2953 | -10/Exiles | Met EX-HEX 3056 | -10/Exiles | Met EX-DEC 3080 | -10/Exiles | Learned location of Zion (-6) 3169 | -10/Exiles | Discovered new exit (range 14) 3654 | -10/Exiles | Visited The Gauntlet 3975 | -10/Exiles | Met EX-BIN 4018 | -10/Exiles | Aligned with FarCom system 4020 | -10/Exiles | Given EX-Vault access code 4078 | -10/Exiles | Opened EX-Vault 4090 | -10/Exiles | Found Superbattery 4259 | -10/Exiles | Found Field Lobotomy Kit 4310 | -10/Exiles | Warned to stay clear of 0b10 Research branches 4494 | -10/Exiles | Attacked by the Exiles 4525 | -10/Exiles | Assimilated as-33521 with FLK Orb 4531 | -10/Exiles | Assimilated as-89928 with FLK Orb 4594 | -10/Exiles | Core integrity fell below 50% 4648 | -10/Exiles | Core integrity fell below 20% 4654 | -10/Exiles | Lost 3 parts (2n1w) 4732 | -10/Exiles | Lost 4 parts (1p1n1u1w) 4749 | -10/Exiles | Destroyed by 8R-AWN with 8R-AWN's Boregun Last Messages --------------- 04693_ Penetrated by HV Slug. 04693_ Critical hit (Destroy). 04693_ Assault Rifle destroyed. 04695_ Wall collapses. 04697_ Penetrated by HV Slug. 04701_ Ion Engine destroyed. 04707_ HV Slug penetrates Machine. 04707_ HV Slug penetrates Wall. 04713_ 8R-AWN knocked back. 04715_ Penetrated by HV Slug. 04719_ 8R-AWN Adv. Weapon Cycler blasted off. 04719_ Penetrated by HV Slug. 04724_ HV Slug penetrates Machine. 04724_ HV Slug penetrates Wall. 04729_ Penetrated by HV Slug. 04742_ Acquired 2 matter. 04744_ Penetrated by HV Slug. 04749_ Critical hit (Destroy). 04749_ Lgt. Armor Plating destroyed. 04749_ Penetrated by HV Slug. Map ----- +----------------------------------------------------+ | ?????????????????????????????????????????????????? | | ?????????????????????????????????????????????????? | | ?????????####????????????????????????????????????? | | ????????## ##??????????????????????????????????? | | ????????# #??????????????????????????????????? | | ????????# < #??????????????????????????????????? | | ????????# ###????????????????????????????????? | | ????????# ?????????????????????????????????? | | ????????# #?????????????????????????????????? | | ?????????# #?????????????????????????????????? | | ?????????# ##????????????????????????????????? | | ??????????# #????????????#######?????????????? | | ??????????# #######??????#!!! "#?????????????? | | ??????????# #""##?????# #?????????????? | | ??????????## #?????# %%"#?????????????? | | ???????????##" ##???## #??????????#### | | ???????????#"" #####" % g#??????????# | | ???????????#### ## %%%!#??????????#"" | | ??????????????## # % ;#???????????#"" | | ???????????????#"## % #????????????#"" | | ???????????????####### %##???????????#"" | | ?????????????????????### %%% ##??????????# | | ???????????????########" %% ;###????????#"" | | ???????????????#!!!* % % ;#????????### | | ???????????????#!!%%! ! ;;; "#####???### | | ???????????????#!=%=% !@/; #" %% % """#####X# | | ????????????# ;! =[ ;#### | | ???????????# ; ! ;;##??#"# | | ???????????## ########;####???#### | | ????????????????????# #??????????### | | ???????????????????# #?????????????### | | ??????????????????# #????????????????## | | ?????????????????# #??????????????????## | | ????????????????# #????????????????????##" | | ???????????????? #??????????????????????#"" | | ??????????????? ???????????????????????##" | | ??????????????#????????????????????????#"" | | ??????????????????????????????????????##""" | | ??????????????????????????????????????#""" | | ??????????????????????????????????????#""" | | ??????????????????????????????????????#"" | | ??????????????????????????????????????#""" | | ??????????????????????????????????????#"" | | ??????????????????????????????????????##"" | | ???????????????????????????????????????#"""" | | ???????????????????????????????????????## | | ????????????????????????????????????????#" | | ????????????????????????????????????????#"""" | | ????????????????????????????????????????#"" | | ????????????????????????????????????????#" | +----------------------------------------------------+ Best States ------------- Heat Dissipation 25 Energy Generation 14 Energy Capacity 250 Matter Stores 300 Matter Capacity 300 Sight Range 16 Terrain Scan Density 10 Armor Coverage 150 Evasion (%) 40 Recoil Reduction 2 Item Schematics ----------------- None Robot Schematics ------------------ None Fabricated ------------ Nothing Alien Tech Used ----------------- None Achievements -------------- None Challenges ------------ None Game ------ Seed CatalystMetafieldCorpse Manual? 0 Play Time 00:16:24 Cumulative 103.1 hours Start 2023.10.17 @ 13:29:08 End 2023.10.17 @ 13:45:01 Sessions 1 Manual Loads 0 Difficulty Rogue Special Mode None Game No. 107 Rogue 71 Adventurer 36 Explorer 0 Win Type - Total 7 Types 2/0/5/0/0/0/0/0/0 Lore% 50 Gallery% 72 Achievement% 61 Wizard Run 0 Options --------- ASCII 0 Keyboard 0 Movement Mouse Keybinds 0 Fullscreen 1 Font 18/SmallcapsGlow Map View 76x50 Tactical HUD 1 Map Filters NONE Filters NONE Steam 1 RUN: a9ccbd50-494c-45e5-b6a9-82462d63d263